fUST/lending_fUST_20250216
["ID","MTS","AMOUNT","RATE_DAILY","PERIOD"]
[353231641,1739693435844,-500.0,8.788e-05,2]
[353231642,1739693435854,-500.0,8.788e-05,2]
[353231643,1739693435863,-500.0,8.788e-05,2]
[353231644,1739693435873,-559.28745731,8.788e-05,2]
[353231645,1739693435882,-500.0,8.788e-05,2]
[353231646,1739693435892,-231.80777619,8.788e-05,2]
[353231647,1739693435901,-13926.62,8.788e-05,2]
[353231648,1739693435910,-1069.86,8.788e-05,2]
[353231649,1739693435920,-500.0,8.788e-05,2]
[353231650,1739693435929,-374.93804142,8.789e-05,2]
[353231651,1739693435939,-500.0,8.789e-05,2]
[353231652,1739693435948,-500.0,8.789e-05,2]
[353231653,1739693435957,-500.0,8.789e-05,2]
[353231654,1739693435967,-500.0,8.789e-05,2]
[353231655,1739693435976,-500.0,8.789e-05,2]
[353231656,1739693435986,-500.0,8.789e-05,2]
[353231657,1739693435995,-500.0,8.789e-05,2]
[353231658,1739693436005,-500.0,8.789e-05,2]
[353231659,1739693436014,-280.99487322,8.789e-05,2]
[353231660,1739693436024,-500.0,8.789e-05,2]
[353231661,1739693436034,-288.88323367,8.789e-05,2]
[353231662,1739693436043,-500.0,8.789e-05,2]
[353231663,1739693436052,-1637.2,8.789e-05,2]
[353231664,1739693436061,-1637.2,8.789e-05,2]
[353231665,1739693436071,-1637.2,8.789e-05,2]
[353231666,1739693436080,-1637.2,8.789e-05,2]
[353231667,1739693436089,-1637.2,8.789e-05,2]
[353231668,1739693436244,-1637.2,8.789e-05,2]
[353231669,1739693436267,-1637.2,8.789e-05,2]
[353231670,1739693436278,-1637.2,8.789e-05,2]
[353231671,1739693436287,-1637.2,8.789e-05,2]
[353231672,1739693436297,-1637.2,8.789e-05,2]
[353231673,1739693436307,-500.0,8.789e-05,2]
[353231674,1739693436316,-500.0,8.789e-05,2]
[353231675,1739693436325,-500.0,8.789e-05,2]
[353231676,1739693436335,-500.0,8.789e-05,2]
[353231677,1739693436344,-500.0,8.789e-05,2]
[353231678,1739693436354,-500.0,8.789e-05,2]
[353231679,1739693436364,-714.51,8.789e-05,2]
[353231680,1739693436374,-500.0,8.789e-05,2]
[353231681,1739693436383,-513.64,8.789e-05,2]
[353231682,1739693436393,-313.89357089,8.79e-05,2]
[353231683,1739693436402,-501.23111099,8.79e-05,2]
[353231684,1739693436412,-507.6354886,8.79e-05,2]
[353231685,1739693436421,-500.0,8.79e-05,2]
[353231686,1739693436430,-500.0,8.79e-05,2]
[353231687,1739693436440,-500.0,8.79e-05,2]
[353231688,1739693436450,-500.0,8.79e-05,2]
[353231689,1739693436459,-500.0,8.79e-05,2]
[353231690,1739693436468,-501.37151388,8.79e-05,2]
[353231691,1739693436478,-581.25,8.79e-05,2]
[353231692,1739693436487,-500.0,8.79e-05,2]
[353231693,1739693436496,-500.71870375,8.79e-05,2]
[353231694,1739693436506,-1272.47,8.79e-05,2]
[353231695,1739693436516,-550.80876211,8.79e-05,2]
[353231696,1739693436526,-500.0,8.79e-05,2]
[353231697,1739693436536,-500.0,8.79e-05,2]
[353231698,1739693436546,-565.6,8.79e-05,2]
[353231699,1739693436555,-500.0,8.79e-05,2]
[353231700,1739693436565,-500.0,8.79e-05,2]
[353231701,1739693436575,-500.0,8.79e-05,2]
[353231702,1739693436584,-500.0,8.79e-05,2]
[353231703,1739693436594,-500.0,8.79e-05,2]
[353231704,1739693436603,-500.0,8.79e-05,2]
[353231705,1739693436613,-500.0,8.79e-05,2]
[353231706,1739693436623,-500.0,8.79e-05,2]
[353231707,1739693436633,-500.0,8.79e-05,2]
[353231708,1739693436642,-501.92399289,8.79e-05,2]
[353231709,1739693436651,-570.98,8.79e-05,2]
[353231710,1739693436661,-187.06092416,8.79e-05,2]
[353231711,1739693436670,-500.0,8.79e-05,2]
[353231712,1739693436679,-500.0,8.79e-05,2]
[353231713,1739693436688,-300.0,8.79e-05,2]
[353231714,1739693436698,-500.0,8.79e-05,2]
[353231715,1739693436708,-500.0,8.79e-05,2]
[353231716,1739693436717,-500.66629952,8.79e-05,2]
[353231717,1739693436727,-506.42824928,8.79e-05,2]
[353231718,1739693436736,-500.0,8.79e-05,2]
[353231719,1739693436746,-503.26601329,8.79e-05,2]
[353231720,1739693436755,-500.87759228,8.79e-05,2]
[353231721,1739693436764,-500.0,8.79e-05,2]
[353231722,1739693436774,-500.0,8.79e-05,2]
[353231723,1739693436783,-365.95127396,8.79e-05,2]
[353231724,1739693436793,-500.0,8.79e-05,2]
[353231725,1739693436802,-500.0,8.79e-05,2]
[353231726,1739693436811,-500.0,8.79e-05,2]
[353231727,1739693436821,-500.0,8.79e-05,2]
[353231728,1739693436831,-210.25468317,8.79e-05,2]
[353231729,1739693436840,-500.0,8.79e-05,2]
[353231730,1739693436849,-500.0,8.79e-05,2]
[353231731,1739693436859,-507.0915454,8.79e-05,2]
[353231732,1739693436868,-500.0,8.79e-05,2]
[353231733,1739693436877,-500.0,8.79e-05,2]
[353231734,1739693436887,-501.58220615,8.79e-05,2]
[353231735,1739693436896,-500.0,8.79e-05,2]
[353231736,1739693436906,-500.0,8.79e-05,2]
[353231737,1739693436915,-501.21825757,8.79e-05,2]
[353231738,1739693436925,-500.0,8.79e-05,2]
[353231739,1739693436935,-824.87,8.79e-05,2]
[353231740,1739693436945,-500.0,8.79e-05,2]
[353231741,1739693436954,-500.0,8.79e-05,2]
[353231742,1739693436964,-500.0,8.79e-05,2]
[353231743,1739693436973,-554.11,8.79e-05,2]
[353231744,1739693436983,-500.0,8.79e-05,2]
[353231745,1739693436992,-313.6319383,8.79e-05,2]
[353231746,1739693437002,-520.33,8.79e-05,2]
[353231747,1739693437011,-500.0,8.79e-05,2]
[353231748,1739693437021,-502.9853041,8.79e-05,2]
[353231749,1739693437031,-500.0,8.79e-05,2]
[353231750,1739693437041,-500.0,8.79e-05,2]
[353231751,1739693437050,-500.0,8.79e-05,2]
[353231752,1739693437060,-500.0,8.79e-05,2]
[353231753,1739693437069,-500.0,8.79e-05,2]
[353231754,1739693437079,-500.0,8.79e-05,2]
[353231755,1739693437088,-500.0,8.79e-05,2]
[353231756,1739693437097,-500.0,8.79e-05,2]
[353231757,1739693437107,-500.0,8.79e-05,2]
[353231758,1739693437118,-500.0,8.79e-05,2]
[353231759,1739693437129,-926.18,8.79e-05,2]
[353231760,1739693437138,-500.0,8.79e-05,2]
[353231761,1739693437147,-500.0,8.79e-05,2]
[353231762,1739693437156,-500.0,8.79e-05,2]
[353231763,1739693437166,-500.0,8.79e-05,2]
[353231764,1739693437182,-500.0,8.79e-05,2]
[353231765,1739693437193,-500.0,8.79e-05,2]
[353231766,1739693437202,-500.0,8.79e-05,2]
[353231767,1739693437212,-502.13170062,8.79e-05,2]
[353231768,1739693437223,-500.0,8.79e-05,2]
[353231769,1739693437232,-551.34293498,8.79e-05,2]
[353231770,1739693437241,-500.0,8.79e-05,2]
[353231771,1739693437252,-1637.2,8.79e-05,2]
[353231772,1739693437261,-1637.2,8.79e-05,2]
[353231773,1739693437271,-1637.2,8.79e-05,2]
[353231774,1739693437280,-500.0,8.79e-05,2]
[353231775,1739693437289,-569.53726686,8.791e-05,2]
[353231776,1739693437298,-521.6836215,8.791e-05,2]
[353231777,1739693437308,-500.0,8.791e-05,2]
[353231778,1739693437317,-500.0,8.791e-05,2]
[353231779,1739693437328,-500.0,8.791e-05,2]
[353231780,1739693437338,-500.0,8.791e-05,2]
[353231781,1739693437348,-500.0,8.791e-05,2]
[353231782,1739693437357,-500.0,8.791e-05,2]
[353231783,1739693437366,-500.0,8.791e-05,2]
[353231784,1739693437376,-500.0,8.791e-05,2]
[353231785,1739693437385,-500.0,8.791e-05,2]
[353231786,1739693437394,-510.51117986,8.791e-05,2]
[353231787,1739693437403,-500.0,8.791e-05,2]
[353231788,1739693437413,-506.24839808,8.791e-05,2]
[353231789,1739693437422,-500.0,8.791e-05,2]
[353231790,1739693437432,-500.0,8.791e-05,2]
[353231791,1739693437442,-500.0,8.791e-05,2]
[353231792,1739693437452,-500.0,8.791e-05,2]
[353231793,1739693437463,-500.0,8.791e-05,2]
[353231794,1739693437473,-635.57,8.791e-05,2]
[353231795,1739693437483,-503.67977773,8.791e-05,2]
[353231796,1739693437492,-500.0,8.791e-05,2]
[353231797,1739693437502,-1204.85,8.791e-05,2]
[353231798,1739693437512,-503.40614959,8.791e-05,2]
[353231799,1739693437521,-500.0,8.791e-05,2]
[353231800,1739693437531,-502.64,8.791e-05,2]
[353231801,1739693437541,-2254.36,8.791e-05,2]
[353231802,1739693437551,-806.85,8.791e-05,2]
[353231803,1739693437560,-1637.2,8.791e-05,2]
[353231804,1739693437573,-500.0,8.791e-05,2]
[353231805,1739693437582,-313.89357089,8.792e-05,2]
[353231806,1739693437591,-313.89357089,8.795e-05,2]
[353231807,1739693437602,-1637.2,8.795e-05,2]
[353231808,1739693437611,-500.0,8.795e-05,2]
[353231809,1739693437621,-234.72035265,8.795e-05,2]
[353231810,1739693437631,-500.0,8.795e-05,2]
[353231811,1739693437640,-509.28909284,8.795e-05,2]
[353231812,1739693437650,-500.0,8.795e-05,2]
[353231813,1739693437660,-1637.2,8.796e-05,2]
[353231814,1739693437670,-1637.2,8.796e-05,2]
[353231815,1739693437680,-1637.2,8.796e-05,2]
[353231816,1739693437690,-1637.2,8.796e-05,2]
[353231817,1739693437700,-1637.2,8.796e-05,2]
[353231818,1739693437710,-1637.2,8.796e-05,2]
[353231819,1739693437719,-1637.2359385,8.796e-05,2]
[353231820,1739693437729,-500.0,8.796e-05,2]
[353231821,1739693437739,-500.0,8.796e-05,2]
[353231822,1739693437748,-500.0,8.796e-05,2]
[353231823,1739693437758,-500.0,8.796e-05,2]
[353231824,1739693437768,-356.56,8.796e-05,2]
[353231825,1739693437779,-407891.33913342,8.797e-05,2]
[353231867,1739693438721,-504.17996425,8.787e-05,2]
[353231869,1739693438731,-4047.4082347,8.797e-05,2]
[353232027,1739693440616,-200413.05508898,8.797e-05,2]
[353234221,1739693610781,160.0,0.00017477,120]
[353234234,1739694505191,348.16500262,0.00019,120]
[353234235,1739694510729,160.0,0.00018673,120]
[353234290,1739694633411,-1700.0,8.22e-05,2]
[353234291,1739694633420,-153.88742,8.709e-05,2]
[353234292,1739694633430,-453.11258,8.773e-05,2]
[353234293,1739694633441,-46.88742,8.773e-05,2]
[353234294,1739694633450,-500.0,8.773e-05,2]
[353234295,1739694633460,-614.65088377,8.773e-05,2]
[353234296,1739694633469,-501.25945983,8.773e-05,2]
[353234297,1739694633479,-501.39719035,8.773e-05,2]
[353234298,1739694633488,-286.78528319,8.773e-05,2]
[353234299,1739694633497,-501.77487002,8.773e-05,2]
[353234300,1739694633507,-501.91074276,8.773e-05,2]
[353234301,1739694633516,-500.0,8.773e-05,2]
[353234302,1739694633528,-500.0,8.773e-05,2]
[353234303,1739694633538,-281.29404845,8.773e-05,2]
[353234304,1739694633547,-102.78312156,8.773e-05,2]
[353234305,1739694633578,-167.19528603,8.773e-05,2]
[353234306,1739694633589,-349.27994026,8.773e-05,2]
[353234307,1739694633598,-500.0,8.773e-05,2]
[353234308,1739694633608,-500.56416598,8.773e-05,2]
[353234309,1739694633619,-510.0619084,8.773e-05,2]
[353234310,1739694633629,-500.0,8.773e-05,2]
[353234311,1739694633639,-500.0,8.773e-05,2]
[353234312,1739694633648,-267.87946456,8.773e-05,2]
[353234313,1739694633658,-500.0,8.773e-05,2]
[353234314,1739694633667,-470.21274658,8.773e-05,2]
[353234315,1739694633677,-620.25499316,8.773e-05,2]
[353234316,1739694633690,-500.0,8.773e-05,2]
[353234317,1739694633700,-502.45231702,8.773e-05,2]
[353234318,1739694633709,-500.0,8.783e-05,2]
[353234319,1739694633720,-500.0,8.783e-05,2]
[353234320,1739694633729,-989.88,8.783e-05,2]
[353234321,1739694633739,-401.46900583,8.783e-05,2]
[353234322,1739694633751,-98.53099417,8.783e-05,2]
[353234323,1739694633761,-158.0213515,8.783e-05,2]
[353234330,1739694638612,-500.0,8.782e-05,2]
[353234331,1739694638622,-500.0,8.782e-05,2]
[353234332,1739694638632,-2525.8786485,8.783e-05,2]
[353234333,1739694638641,-500.0,8.783e-05,2]
[353234334,1739694638650,-500.0,8.783e-05,2]
[353234335,1739694638659,-500.0,8.783e-05,2]
[353234336,1739694638669,-500.0,8.783e-05,2]
[353234337,1739694638679,-500.0,8.783e-05,2]
[353234338,1739694638692,-500.0,8.783e-05,2]
[353234339,1739694638701,-1869.52,8.783e-05,2]
[353234340,1739694638710,-5701.44,8.783e-05,2]
[353234341,1739694638720,-1039.26,8.783e-05,2]
[353234342,1739694638730,-934.77,8.783e-05,2]
[353234343,1739694638740,-500.0,8.783e-05,2]
[353234344,1739694638750,-500.0,8.783e-05,2]
[353234345,1739694638760,-500.0,8.783e-05,2]
[353234346,1739694638769,-2030.77,8.783e-05,2]
[353234347,1739694638779,-500.0,8.783e-05,2]
[353234348,1739694638789,-2013.69,8.783e-05,2]
[353234349,1739694638799,-500.0,8.783e-05,2]
[353234350,1739694638809,-1308.91,8.783e-05,2]
[353234351,1739694638819,-500.0,8.783e-05,2]
[353234352,1739694638829,-500.0,8.783e-05,2]
[353234353,1739694638838,-623.56,8.783e-05,2]
[353234354,1739694638848,-682.65,8.783e-05,2]
[353234355,1739694638858,-1902.8,8.783e-05,2]
[353234356,1739694638869,-500.0,8.783e-05,2]
[353234357,1739694638879,-3162.15,8.783e-05,2]
[353234358,1739694638889,-500.0,8.783e-05,2]
[353234359,1739694638899,-500.0,8.783e-05,2]
[353234360,1739694638909,-790.35,8.783e-05,2]
[353234361,1739694638919,-368.77151671,8.783e-05,2]
[353234362,1739694638929,-500.0,8.783e-05,2]
[353234363,1739694638939,-500.0,8.783e-05,2]
[353234364,1739694638949,-460.59944431,8.783e-05,2]
[353234365,1739694638958,-500.0,8.783e-05,2]
[353234366,1739694638968,-500.0,8.783e-05,2]
[353234367,1739694638977,-500.0,8.783e-05,2]
[353234368,1739694638987,-500.0,8.783e-05,2]
[353234369,1739694638997,-500.0,8.783e-05,2]
[353234370,1739694639006,-500.0,8.783e-05,2]
[353234371,1739694639016,-500.0,8.783e-05,2]
[353234372,1739694639026,-500.0,8.783e-05,2]
[353234373,1739694639035,-500.0,8.783e-05,2]
[353234374,1739694639044,-500.0,8.783e-05,2]
[353234375,1739694639053,-500.0,8.783e-05,2]
[353234376,1739694639062,-500.0,8.783e-05,2]
[353234377,1739694639072,-500.0,8.783e-05,2]
[353234378,1739694639082,-500.0,8.783e-05,2]
[353234379,1739694639092,-969.75,8.783e-05,2]
[353234380,1739694639101,-500.0,8.784e-05,2]
[353234381,1739694639111,-693.88,8.784e-05,2]
[353234382,1739694639123,-500.0,8.784e-05,2]
[353234383,1739694639133,-855.45,8.784e-05,2]
[353234384,1739694639143,-500.0,8.784e-05,2]
[353234385,1739694639153,-542.64,8.784e-05,2]
[353234386,1739694639163,-544.21,8.784e-05,2]
[353234387,1739694639174,-500.0,8.784e-05,2]
[353234388,1739694639183,-500.0,8.784e-05,2]
[353234389,1739694639193,-569.57,8.784e-05,2]
[353234390,1739694639202,-500.0,8.784e-05,2]
[353234391,1739694639212,-500.0,8.784e-05,2]
[353234392,1739694639221,-841.81,8.784e-05,2]
[353234393,1739694639230,-500.0,8.784e-05,2]
[353234394,1739694639240,-500.0,8.784e-05,2]
[353234395,1739694639250,-639.55,8.784e-05,2]
[353234396,1739694639259,-577.85,8.784e-05,2]
[353234397,1739694639269,-500.0,8.784e-05,2]
[353234398,1739694639278,-500.0,8.784e-05,2]
[353234399,1739694639287,-500.0,8.784e-05,2]
[353234400,1739694639297,-524.24,8.784e-05,2]
[353234401,1739694639306,-500.0,8.784e-05,2]
[353234402,1739694639317,-521.85,8.784e-05,2]
[353234403,1739694639326,-808.11,8.784e-05,2]
[353234404,1739694639336,-500.0,8.784e-05,2]
[353234405,1739694639346,-500.0,8.784e-05,2]
[353234406,1739694639355,-500.0,8.784e-05,2]
[353234407,1739694639364,-500.0,8.784e-05,2]
[353234408,1739694639376,-500.0,8.784e-05,2]
[353234409,1739694639385,-8286.85,8.784e-05,2]
[353234410,1739694639394,-2173.67,8.784e-05,2]
[353234411,1739694639403,-579.01,8.784e-05,2]
[353234412,1739694639413,-831.51,8.784e-05,2]
[353234413,1739694639422,-1285.25,8.784e-05,2]
[353234414,1739694639431,-500.0,8.784e-05,2]
[353234415,1739694639440,-998.5,8.784e-05,2]
[353234416,1739694639450,-500.0,8.784e-05,2]
[353234417,1739694639459,-500.0,8.784e-05,2]
[353234418,1739694639468,-500.0,8.784e-05,2]
[353234419,1739694639477,-216.22534481,8.784e-05,2]
[353234420,1739694639486,-500.0,8.784e-05,2]
[353234421,1739694639495,-500.0,8.784e-05,2]
[353234422,1739694639504,-500.0,8.784e-05,2]
[353234423,1739694639514,-930.9,8.784e-05,2]
[353234424,1739694639523,-500.0,8.784e-05,2]
[353234425,1739694639532,-500.0,8.784e-05,2]
[353234426,1739694639541,-500.0,8.784e-05,2]
[353234427,1739694639550,-1276.77,8.784e-05,2]
[353234428,1739694639560,-672.23,8.784e-05,2]
[353234429,1739694639570,-500.0,8.784e-05,2]
[353234430,1739694639581,-500.0,8.784e-05,2]
[353234431,1739694639591,-500.0,8.784e-05,2]
[353234432,1739694639601,-500.0,8.784e-05,2]
[353234433,1739694639610,-677.13,8.784e-05,2]
[353234434,1739694639621,-500.0,8.784e-05,2]
[353234435,1739694639631,-680.45,8.784e-05,2]
[353234436,1739694639640,-500.0,8.784e-05,2]
[353234437,1739694639650,-500.0,8.784e-05,2]
[353234438,1739694639659,-500.0,8.784e-05,2]
[353234439,1739694639668,-1121.5,8.784e-05,2]
[353234440,1739694639678,-502.55302853,8.784e-05,2]
[353234441,1739694639690,-500.0,8.784e-05,2]
[353234442,1739694639699,-588.44,8.784e-05,2]
[353234443,1739694639708,-500.0,8.784e-05,2]
[353234444,1739694639718,-643.99,8.784e-05,2]
[353234445,1739694639727,-500.0,8.784e-05,2]
[353234446,1739694639736,-500.0,8.784e-05,2]
[353234447,1739694639745,-500.0,8.784e-05,2]
[353234448,1739694639754,-500.0,8.784e-05,2]
[353234449,1739694639764,-631.79,8.784e-05,2]
[353234450,1739694639774,-500.0,8.784e-05,2]
[353234451,1739694639783,-500.0,8.784e-05,2]
[353234452,1739694639793,-500.0,8.784e-05,2]
[353234453,1739694639803,-500.0,8.784e-05,2]
[353234454,1739694639813,-506.39549877,8.784e-05,2]
[353234455,1739694639822,-2778.02,8.784e-05,2]
[353234456,1739694639831,-500.0,8.784e-05,2]
[353234457,1739694639840,-929.01,8.784e-05,2]
[353234458,1739694639849,-500.0,8.784e-05,2]
[353234459,1739694639858,-500.0,8.784e-05,2]
[353234460,1739694639867,-500.0,8.784e-05,2]
[353234461,1739694639878,-500.0,8.784e-05,2]
[353234462,1739694639887,-500.0,8.784e-05,2]
[353234463,1739694639896,-500.0,8.784e-05,2]
[353234464,1739694639906,-500.0,8.784e-05,2]
[353234465,1739694639915,-502.67862467,8.784e-05,2]
[353234466,1739694639925,-793.49,8.784e-05,2]
[353234467,1739694639934,-502.6916457,8.784e-05,2]
[353234468,1739694639943,-500.0,8.784e-05,2]
[353234469,1739694639952,-536.73,8.784e-05,2]
[353234470,1739694639962,-30012.35,8.784e-05,2]
[353234471,1739694639971,-500.0,8.784e-05,2]
[353234472,1739694639981,-247.18534103,8.784e-05,2]
[353234473,1739694639991,-500.0,8.784e-05,2]
[353234474,1739694640000,-358.97942274,8.784e-05,2]
[353234475,1739694640009,-500.0,8.784e-05,2]
[353234476,1739694640019,-500.0,8.785e-05,2]
[353234477,1739694640028,-500.0,8.785e-05,2]
[353234478,1739694640038,-500.0,8.785e-05,2]
[353234479,1739694640047,-500.0,8.785e-05,2]
[353234480,1739694640056,-293.43134714,8.785e-05,2]
[353234481,1739694640066,-154.873,8.785e-05,2]
[353234482,1739694640076,-500.0,8.785e-05,2]
[353234483,1739694640085,-500.0,8.785e-05,2]
[353234484,1739694640094,-500.0,8.785e-05,2]
[353234485,1739694640103,-500.0,8.785e-05,2]
[353234486,1739694640112,-500.0,8.785e-05,2]
[353234487,1739694640123,-500.0,8.785e-05,2]
[353234488,1739694640132,-500.0,8.785e-05,2]
[353234489,1739694640141,-500.0,8.785e-05,2]
[353234490,1739694640151,-500.0,8.785e-05,2]
[353234491,1739694640161,-501.70311074,8.785e-05,2]
[353234492,1739694640170,-500.0,8.785e-05,2]
[353234493,1739694640180,-500.0,8.785e-05,2]
[353234494,1739694640190,-500.0,8.785e-05,2]
[353234495,1739694640199,-213.96652276,8.785e-05,2]
[353234496,1739694640209,-500.0,8.785e-05,2]
[353234497,1739694640218,-500.0,8.785e-05,2]
[353234498,1739694640228,-500.0,8.785e-05,2]
[353234499,1739694640238,-500.0,8.785e-05,2]
[353234500,1739694640247,-500.0,8.785e-05,2]
[353234501,1739694640256,-500.0,8.785e-05,2]
[353234502,1739694640266,-501.90547418,8.785e-05,2]
[353234503,1739694640275,-500.0,8.785e-05,2]
[353234504,1739694640285,-500.0,8.785e-05,2]
[353234505,1739694640295,-502.17235221,8.785e-05,2]
[353234506,1739694640304,-500.0,8.785e-05,2]
[353234507,1739694640314,-500.0,8.785e-05,2]
[353234508,1739694640323,-500.0,8.785e-05,2]
[353234509,1739694640333,-504.59988527,8.785e-05,2]
[353234510,1739694640343,-500.0,8.785e-05,2]
[353234511,1739694640353,-500.0,8.785e-05,2]
[353234512,1739694640362,-500.0,8.785e-05,2]
[353234513,1739694640372,-548.27,8.785e-05,2]
[353234514,1739694640381,-500.0,8.785e-05,2]
[353234516,1739694640391,-500.0,8.785e-05,2]
[353234518,1739694640400,-506.91924033,8.785e-05,2]
[353234520,1739694640409,-500.0,8.785e-05,2]
[353234521,1739694640419,-669.47,8.785e-05,2]
[353234522,1739694640429,-293.5474661,8.785e-05,2]
[353234523,1739694640439,-850.19,8.785e-05,2]
[353234525,1739694640448,-625.36247002,8.785e-05,2]
[353234526,1739694640458,-500.0,8.785e-05,2]
[353234527,1739694640468,-854.73,8.785e-05,2]
[353234528,1739694640478,-500.0,8.785e-05,2]
[353234529,1739694640488,-500.0,8.785e-05,2]
[353234530,1739694640497,-500.0,8.785e-05,2]
[353234531,1739694640506,-500.0,8.785e-05,2]
[353234532,1739694640516,-500.0,8.785e-05,2]
[353234533,1739694640525,-500.0,8.785e-05,2]
[353234534,1739694640534,-500.0,8.785e-05,2]
[353234535,1739694640543,-524.12,8.785e-05,2]
[353234536,1739694640553,-500.0,8.785e-05,2]
[353234537,1739694640563,-501.10520536,8.785e-05,2]
[353234538,1739694640573,-501.57129286,8.785e-05,2]
[353234539,1739694640582,-500.0,8.785e-05,2]
[353234540,1739694640592,-501.09278847,8.785e-05,2]
[353234541,1739694640602,-500.96815387,8.785e-05,2]
[353234542,1739694640611,-577.87,8.785e-05,2]
[353234543,1739694640621,-503.82539058,8.785e-05,2]
[353234544,1739694640630,-298.552654,8.785e-05,2]
[353234545,1739694640640,-500.0,8.785e-05,2]
[353234546,1739694640649,-500.0,8.785e-05,2]
[353234547,1739694640659,-311.96996259,8.785e-05,2]
[353234548,1739694640669,-221.25258393,8.785e-05,2]
[353234549,1739694640678,-500.0,8.785e-05,2]
[353234550,1739694640691,-500.0,8.785e-05,2]
[353234551,1739694640701,-500.0,8.785e-05,2]
[353234553,1739694640711,-500.0,8.785e-05,2]
[353234554,1739694640721,-500.0,8.785e-05,2]
[353234555,1739694640730,-165.09926943,8.785e-05,2]
[353234556,1739694640740,-500.0,8.785e-05,2]
[353234557,1739694640750,-1219.45,8.785e-05,2]
[353234558,1739694640759,-547.19,8.785e-05,2]
[353234559,1739694640769,-501.54846624,8.785e-05,2]
[353234560,1739694640779,-542.03,8.785e-05,2]
[353234561,1739694640788,-500.0,8.785e-05,2]
[353234562,1739694640890,-500.0,8.785e-05,2]
[353234563,1739694640900,-304.21901865,8.785e-05,2]
[353234564,1739694640909,-500.0,8.785e-05,2]
[353234565,1739694640919,-500.0,8.785e-05,2]
[353234566,1739694640929,-14760.95,8.785e-05,2]
[353234567,1739694640939,-500.0,8.785e-05,2]
[353234568,1739694640949,-500.0,8.785e-05,2]
[353234569,1739694640958,-500.0,8.785e-05,2]
[353234570,1739694640968,-500.0,8.785e-05,2]
[353234571,1739694640977,-500.0,8.785e-05,2]
[353234572,1739694640988,-500.0,8.785e-05,2]
[353234573,1739694640998,-257.87936405,8.785e-05,2]
[353234574,1739694641008,-8286.85,8.785e-05,2]
[353234575,1739694641017,-8286.85,8.785e-05,2]
[353234576,1739694641027,-8286.85,8.785e-05,2]
[353234577,1739694641036,-8286.85,8.785e-05,2]
[353234578,1739694641046,-8286.85,8.785e-05,2]
[353234579,1739694641055,-8286.85,8.785e-05,2]
[353234580,1739694641064,-8286.85,8.785e-05,2]
[353234581,1739694641073,-8286.85,8.785e-05,2]
[353234582,1739694641083,-1874.84,8.785e-05,2]
[353234583,1739694641092,-500.0,8.785e-05,2]
[353234584,1739694641103,-508.83110803,8.785e-05,2]
[353234585,1739694641112,-1756.56,8.785e-05,2]
[353234586,1739694641122,-500.0,8.785e-05,2]
[353234587,1739694641132,-500.0,8.785e-05,2]
[353234588,1739694641142,-500.0,8.785e-05,2]
[353234589,1739694641151,-1026.8,8.785e-05,2]
[353234590,1739694641163,-500.77310309,8.785e-05,2]
[353234591,1739694641172,-617.28,8.785e-05,2]
[353234592,1739694641181,-500.0,8.785e-05,2]
[353234593,1739694641191,-587.98,8.785e-05,2]
[353234594,1739694641201,-500.0,8.785e-05,2]
[353234595,1739694641211,-407.96857615,8.785e-05,2]
[353234596,1739694641220,-531.02,8.785e-05,2]
[353234597,1739694641229,-500.0,8.785e-05,2]
[353234598,1739694641239,-500.0,8.785e-05,2]
[353234599,1739694641249,-500.0,8.785e-05,2]
[353234600,1739694641259,-790.5,8.785e-05,2]
[353234601,1739694641269,-500.0,8.785e-05,2]
[353234602,1739694641278,-504.85249423,8.785e-05,2]
[353234603,1739694641287,-500.0,8.785e-05,2]
[353234604,1739694641297,-500.0,8.785e-05,2]
[353234605,1739694641306,-500.0,8.785e-05,2]
[353234606,1739694641315,-14197.21,8.785e-05,2]
[353234607,1739694641325,-504.57729409,8.785e-05,2]
[353234608,1739694641334,-500.0,8.785e-05,2]
[353234609,1739694641344,-500.0,8.785e-05,2]